fUST/lending_fUST_20250829
["ID","MTS","AMOUNT","RATE_DAILY","PERIOD"]
[381932178,1756419047698,-480.0,0.00020273,2]
[381932179,1756419047708,-480.0,0.00020273,2]
[381932180,1756419047717,-494.17,0.00020273,2]
[381932181,1756419047726,-480.0,0.00020273,2]
[381932182,1756419047736,-480.0,0.00020273,2]
[381932183,1756419047745,-160.0,0.00020359,2]
[381932184,1756419047755,-160.0,0.00020359,2]
[381932185,1756419047764,-425.52029335,0.00020359,2]
[381932186,1756419047773,-160.0,0.00020359,2]
[381932187,1756419047782,-217.27834477,0.00020359,2]
[381932188,1756419047792,-417.15472785,0.00020359,2]
[381932189,1756419047801,-160.0,0.00020359,2]
[381932190,1756419047810,-845.47023312,0.00020359,2]
[381932191,1756419047819,-160.0,0.00020359,2]
[381932192,1756419047828,-216.18903889,0.00020359,2]
[381932193,1756419047838,-529.67291817,0.00020359,2]
[381932194,1756419047847,-160.0,0.00020359,2]
[381932195,1756419047856,-232.64478309,0.00020359,2]
[381932196,1756419047865,-12710.44222334,0.00020359,2]
[381932197,1756419047874,-1000.0,0.0002038,2]
[381932198,1756419047884,-1000.0,0.00020402,2]
[381932199,1756419047893,-1000.0,0.00020524,2]
[381932200,1756419047902,-1000.0,0.00020524,2]
[381932201,1756419047911,-1000.0,0.00020524,2]
[381932202,1756419047920,-480.0,0.00020547,2]
[381932203,1756419047930,-480.0,0.00020547,2]
[381932204,1756419047938,-480.0,0.00020547,2]
[381932205,1756419047948,-480.0,0.00020547,2]
[381932206,1756419047957,-494.17,0.00020547,2]
[381932207,1756419047966,-480.0,0.00020547,2]
[381932208,1756419047975,-480.0,0.00020547,2]
[381932209,1756419047984,-1000.0,0.00020703,2]
[381932210,1756419047994,-187.78006525,0.00020808,2]
[381932211,1756419048003,-480.0,0.00020821,2]
[381932212,1756419048012,-480.0,0.00020821,2]
[381932213,1756419048021,-480.0,0.00020821,2]
[381932214,1756419048030,-480.0,0.00020821,2]
[381932215,1756419048039,-494.17,0.00020821,2]
[381932216,1756419048049,-480.0,0.00020821,2]
[381932217,1756419048058,-480.0,0.00020821,2]
[381932218,1756419048067,-420.0,0.00020898,2]
[381932219,1756419048076,-1500.0,0.00020928,2]
[381932220,1756419048085,-1159.12088367,0.0002095,2]
[381932221,1756419048094,-3000.0,0.00021,2]
[381932222,1756419048103,-3000.0,0.0002101,2]
[381932223,1756419048113,-5514.795275,0.0002102,2]
[381932224,1756419048122,-1500.0,0.00021072,2]
[381932225,1756419048131,-1500.0,0.00021072,2]
[381932226,1756419048140,-1500.0,0.00021072,2]
[381932227,1756419048150,-480.0,0.00021095,2]
[381932228,1756419048159,-480.0,0.00021095,2]
[381932229,1756419048168,-480.0,0.00021095,2]
[381932230,1756419048177,-480.0,0.00021095,2]
[381932231,1756419048188,-494.17,0.00021095,2]
[381932232,1756419048197,-480.57185583,0.00021095,2]
[381932233,1756419048206,-480.0,0.00021095,2]
[381932234,1756419048215,-1359.15,0.00021241,10]
[381932235,1756419048224,-1500.0,0.00021251,2]
[381932236,1756419048234,-480.0,0.00021369,2]
[381932237,1756419048243,-480.0,0.00021369,2]
[381932238,1756419048252,-480.0,0.00021369,2]
[381932239,1756419048262,-480.0,0.00021369,2]
[381932240,1756419048270,-494.17,0.00021369,2]
[381932241,1756419048280,-480.0,0.00021369,2]
[381932242,1756419048289,-500.0,0.0002145,2]
[381932243,1756419048298,-1000.0,0.00021476,2]
[381932244,1756419048307,-500.0,0.0002162,2]
[381932245,1756419048316,-1500.0,0.0002162,2]
[381932246,1756419048326,-3117.59247858,0.00021627,2]
[381932247,1756419048336,-480.0,0.00021643,2]
[381932248,1756419048345,-480.0,0.00021643,2]
[381932249,1756419048354,-480.0,0.00021643,2]
[381932250,1756419048363,-480.0,0.00021643,2]
[381932251,1756419048372,-494.17,0.00021643,2]
[381932252,1756419048381,-480.0,0.00021643,2]
[381932253,1756419048391,-2000.0,0.00021799,2]
[381932254,1756419048398,-160.0,0.00021886,2]
[381932255,1756419048404,-480.0,0.00021917,2]
[381932256,1756419048411,-225.70835126,0.00021917,2]
[381932257,1756419048417,-480.0,0.00021917,2]
[381932258,1756419048424,-480.0,0.00021917,2]
[381932259,1756419048432,-494.17,0.00021917,2]
[381932260,1756419048439,-480.0,0.00021917,2]
[381932261,1756419048447,-187.17360401,0.00021929,2]
[381932262,1756419048453,-500.0,0.00021998,2]
[381932263,1756419048460,-323.32,0.000221,2]
[381932264,1756419048467,-194.72792766,0.00022177,2]
[381932265,1756419048475,-629.97712379,0.00022191,2]
[381932266,1756419048483,-480.0,0.00022191,2]
[381932267,1756419048491,-480.0,0.00022191,2]
[381932268,1756419048499,-494.17,0.00022191,2]
[381932269,1756419048506,-480.0,0.00022191,2]
[381932270,1756419048513,-733.87975295,0.00022347,2]
[381932271,1756419048521,-260.0,0.00022434,2]
[381932272,1756419048530,-480.0,0.00022465,2]
[381932273,1756419048540,-480.0,0.00022465,2]
[381932274,1756419048547,-494.17,0.00022465,2]
[381932275,1756419048553,-480.0,0.00022465,2]
[381932276,1756419048560,-155.754415,0.00022619,2]
[381932277,1756419048567,-480.0,0.00022739,2]
[381932278,1756419048575,-480.0,0.00022739,2]
[381932279,1756419048581,-494.17,0.00022739,2]
[381932280,1756419048588,-480.0,0.00022739,2]
[381932281,1756419048594,-587.0,0.00022775,2]
[381932282,1756419048601,-360.0,0.00022982,2]
[381932283,1756419048611,-160.0,0.00023,2]
[381932284,1756419048620,-480.0,0.00023013,2]
[381932285,1756419048630,-480.0,0.00023013,2]
[381932286,1756419048639,-494.17,0.00023013,2]
[381932287,1756419048648,-480.0,0.00023013,2]
[381932288,1756419048655,-150.0,0.00023116,2]
[381932289,1756419048663,-454.1022638,0.00023287,2]
[381932290,1756419048670,-480.0,0.00023287,2]
[381932291,1756419048678,-494.17,0.00023287,2]
[381932292,1756419048685,-480.0,0.00023287,2]
[381932293,1756419048692,-188.048882,0.00023288,2]
[381932294,1756419048700,-500.0,0.00023329,2]
[381932295,1756419048706,-3117.59247858,0.00023353,2]
[381932296,1756419048712,-250.0,0.00023365,2]
[381932297,1756419048721,-500.0,0.00023385,2]
[381932298,1756419048729,-194.16702741,0.00023401,3]
[381932299,1756419048736,-669.951,0.00023401,3]
[381932300,1756419048742,-460.0,0.0002353,2]
[381932301,1756419048750,-201.93286099,0.00023546,2]
[381932302,1756419048758,-480.0,0.00023561,2]
[381932303,1756419048765,-494.17,0.00023561,2]
[381932304,1756419048773,-480.0,0.00023561,2]
[381932305,1756419048782,-974.0,0.00023594,2]
[381932306,1756419048791,-632.0,0.00023594,2]
[381932307,1756419048801,-2151.0,0.00023594,2]
[381932308,1756419048810,-409.0,0.00023594,2]
[381932309,1756419048820,-480.0,0.00023835,2]
[381932310,1756419048829,-494.17,0.00023835,2]
[381932311,1756419048839,-480.0,0.00023835,2]
[381932312,1756419048848,-183.68527459,0.000239,2]
[381932313,1756419048857,-153.0,0.0002393,2]
[381932314,1756419048866,-153.0,0.0002393,2]
[381932315,1756419048875,-153.0,0.0002393,2]
[381932316,1756419048885,-153.0,0.0002393,2]
[381932317,1756419048895,-153.0,0.0002393,2]
[381932318,1756419048904,-153.0,0.0002393,2]
[381932319,1756419048914,-153.0,0.0002393,2]
[381932320,1756419048923,-153.0,0.0002393,2]
[381932321,1756419048932,-153.0,0.0002393,2]
[381932322,1756419048942,-153.0,0.0002393,2]
[381932323,1756419048951,-153.0,0.0002393,2]
[381932324,1756419048960,-153.0,0.0002393,2]
[381932325,1756419048969,-153.0,0.0002393,2]
[381932326,1756419048979,-153.0,0.0002393,2]
[381932327,1756419048988,-153.0,0.0002393,2]
[381932328,1756419048997,-153.0,0.0002393,2]
[381932329,1756419049006,-153.0,0.0002393,2]
[381932330,1756419049016,-153.0,0.0002393,2]
[381932331,1756419049025,-153.0,0.0002393,2]
[381932332,1756419049034,-153.0,0.0002393,2]
[381932333,1756419049043,-153.0,0.0002393,2]
[381932334,1756419049052,-153.0,0.0002393,2]
[381932335,1756419049062,-153.0,0.0002393,2]
[381932336,1756419049071,-153.0,0.0002393,2]
[381932337,1756419049080,-153.0,0.0002393,2]
[381932338,1756419049090,-153.0,0.0002393,2]
[381932339,1756419049100,-153.0,0.0002393,2]
[381932340,1756419049109,-153.0,0.0002393,2]
[381932341,1756419049119,-153.0,0.0002393,2]
[381932342,1756419049128,-153.0,0.0002393,2]
[381932343,1756419049137,-153.0,0.0002393,2]
[381932344,1756419049147,-153.0,0.0002393,2]
[381932345,1756419049158,-1000.0,0.00023933,2]
[381932346,1756419049168,-500.0,0.00023973,2]
[381932347,1756419049177,-100000.0,0.0002399,2]
[381932348,1756419049186,-216.18903889,0.00024,3]
[381932349,1756419049196,-335.29038712,0.0002403,2]
[381932350,1756419049205,-560.0,0.00024077,2]
[381932351,1756419049216,-480.0,0.00024109,2]
[381932352,1756419049225,-494.17,0.00024109,2]
[381932353,1756419049236,-480.0,0.00024109,2]
[381932354,1756419049246,-1000.0,0.000242,2]
[381932355,1756419049256,-371.57317376,0.00024383,2]
[381932356,1756419049265,-494.17,0.00024383,2]
[381932357,1756419049275,-480.0,0.00024383,2]
[381932358,1756419049284,-1500.0,0.00024481,2]
[381932359,1756419049293,-660.0,0.00024625,2]
[381932360,1756419049302,-422.4977946,0.0002464,2]
[381932361,1756419049312,-150.3830194,0.0002464,2]
[381932362,1756419049321,-494.17,0.00024657,2]
[381932363,1756419049331,-480.0,0.00024657,2]
[381932364,1756419049340,-380.0,0.00024658,2]
[381932365,1756419049350,-500.0,0.00024658,2]
[381932366,1756419049360,-226.37059576,0.00024658,2]
[381932367,1756419049369,-245.0,0.00024658,2]
[381932368,1756419049379,-465.0,0.00024658,2]
[381932369,1756419049388,-198.0,0.00024658,2]
[381932370,1756419049397,-1000.0,0.000247,2]
[381932371,1756419049407,-850.52066846,0.00024721,2]
[381932372,1756419049417,-1675.90372135,0.00024774,2]
[381932373,1756419049427,-151.0,0.00024774,2]
[381932374,1756419049436,-1000.0,0.00024774,2]
[381932375,1756419049445,-1000.0,0.00024774,2]
[381932376,1756419049456,-1000.0,0.00024774,2]
[381932377,1756419049466,-157.55314784,0.00024774,2]
[381932378,1756419049476,-151.0,0.00024774,2]
[381932379,1756419049486,-5431.63732752,0.000248,2]
[381932380,1756419049497,-823.0,0.0002482,2]
[381932381,1756419049507,-150.0,0.00024873,2]
[381932382,1756419049515,-150.0,0.00024873,2]
[381932383,1756419049525,-150.0,0.00024873,2]
[381932384,1756419049537,-875.1,0.000249,7]
[381932385,1756419049547,-5284.31,0.000249,7]
[381932386,1756419049556,-7295.25,0.000249,2]
[381932387,1756419049566,-151.0,0.000249,7]
[381932388,1756419049577,-151.0,0.000249,7]
[381932389,1756419049586,-252.07299,0.000249,7]
[381932390,1756419049595,-151.0,0.000249,7]
[381932391,1756419049604,-151.0,0.000249,7]
[381932392,1756419049614,-151.0,0.000249,7]
[381932393,1756419049624,-151.0,0.000249,7]
[381932394,1756419049635,-151.0,0.000249,7]
[381932395,1756419049646,-151.0,0.000249,7]
[381932396,1756419049655,-151.0,0.000249,7]
[381932397,1756419049664,-151.0,0.000249,7]
[381932398,1756419049675,-246.763921,0.000249,7]
[381932399,1756419049796,-151.0,0.000249,7]
[381932400,1756419049807,-151.0,0.000249,7]
[381932401,1756419049816,-151.0,0.000249,7]
[381932402,1756419049825,-151.0,0.000249,7]
[381932403,1756419049834,-151.0,0.000249,7]
[381932404,1756419049843,-151.0,0.000249,7]
[381932405,1756419049852,-232.64478309,0.000249,7]
[381932406,1756419049861,-217.27834477,0.000249,7]
[381932407,1756419049871,-151.0,0.000249,7]
[381932408,1756419049880,-216.18903889,0.000249,7]
[381932409,1756419049890,-151.0,0.000249,7]
[381932410,1756419049900,-151.0,0.000249,7]
[381932411,1756419049909,-151.0,0.000249,7]
[381932412,1756419049918,-151.0,0.000249,7]
[381932413,1756419049927,-151.0,0.000249,7]
[381932414,1756419049936,-417.15472785,0.000249,7]
[381932415,1756419049945,-324522.13241267,0.000249,2]
[381932416,1756419054673,196.802231,0.00013699,2]
[381932438,1756420032570,186.962119,0.00013699,2]
[381932489,1756420231825,-455.43045761,0.00017875,2]
[381932491,1756420231835,-201.9445424,0.00018056,2]
[381932595,1756420237947,-300.0,0.00019177,2]
[381932596,1756420237959,-657.0,0.00019177,2]
[381932597,1756420237968,-480.0,0.00019178,2]
[381932598,1756420237978,-167.88,0.00019178,2]
[381932599,1756420237987,-155.2,0.00019178,2]
[381932600,1756420237996,-480.0,0.00019178,2]
[381932601,1756420238006,-171.17,0.00019178,2]
[381932602,1756420238016,-480.0,0.00019178,2]
[381932603,1756420238026,-480.0,0.00019178,2]
[381932604,1756420238036,-300.0,0.00019561,20]
[381932605,1756420238046,-300.0,0.00019561,20]
[381932606,1756420238057,-300.0,0.00019561,20]
[381932607,1756420238066,-500.0,0.000198,2]
[381932608,1756420238076,-188.048882,0.00019863,2]
[381932609,1756420238085,-480.0,0.00019899,2]
[381932610,1756420238095,-480.0,0.00019899,2]
[381932611,1756420238104,-480.0,0.00019899,2]
[381932613,1756420238114,-480.0,0.00019899,2]
[381932615,1756420238128,-480.0,0.00019899,2]
[381932616,1756420238138,-2938.70864483,0.000199,2]
[381932617,1756420238148,-480.0,0.00019999,2]
[381932618,1756420238157,-744.14,0.00019999,2]
[381932619,1756420238166,-480.0,0.00019999,2]
[381932620,1756420238176,-480.0,0.00019999,2]
[381932621,1756420238185,-654.77,0.00019999,2]
[381932622,1756420238195,-480.0,0.00019999,2]
[381932623,1756420238205,-160.0,0.0002,3]
[381932624,1756420238214,-18216.3850258,0.0002,2]
[381932625,1756420238223,-480.0,0.00020173,2]
[381932626,1756420238232,-480.0,0.00020173,2]
[381932627,1756420238241,-480.0,0.00020173,2]
[381932628,1756420238250,-186.962119,0.00020187,2]
[381932629,1756420238259,-480.0,0.00020273,2]
[381932630,1756420238269,-744.14,0.00020273,2]
[381932631,1756420238278,-584.33,0.00020273,2]
[381932632,1756420238287,-480.0,0.00020273,2]
[381932633,1756420238297,-654.77,0.00020273,2]
[381932634,1756420238306,-480.0,0.00020273,2]
[381932635,1756420238316,-480.0,0.00020358,2]
[381932636,1756420238326,-480.0,0.00020358,2]
[381932637,1756420238335,-480.0,0.00020358,2]
[381932638,1756420238344,-480.0,0.00020358,2]
[381932639,1756420238353,-200.11,0.00020358,2]
[381932640,1756420238362,-401.81,0.00020358,2]
[381932641,1756420238371,-480.0,0.00020358,2]
[381932642,1756420238381,-480.0,0.00020358,2]
[381932643,1756420238390,-480.0,0.00020358,2]
[381932644,1756420238399,-275.81,0.00020358,2]
[381932646,1756420238409,-480.0,0.00020358,2]
[381932648,1756420238418,-321.23,0.00020358,2]
[381932649,1756420238427,-480.0,0.00020358,2]
[381932651,1756420238439,-1000.0,0.00020358,2]
[381932652,1756420238449,-264.23,0.00020358,2]
[381932653,1756420238459,-480.0,0.00020358,2]
[381932654,1756420238468,-480.0,0.00020358,2]
[381932655,1756420238477,-480.0,0.00020358,2]
[381932656,1756420238487,-480.0,0.00020358,2]
[381932657,1756420238496,-580.47066992,0.00020358,2]
[381932658,1756420238506,-480.0,0.00020358,2]
[381932659,1756420238515,-480.0,0.00020358,2]
[381932660,1756420238523,-12710.44222334,0.00020388,2]
[381932661,1756420238533,-529.67291817,0.00020389,2]
[381932662,1756420238543,-160.0,0.00020389,2]
[381932663,1756420238551,-232.64478309,0.00020389,2]
[381932664,1756420238561,-160.0,0.00020389,2]
[381932665,1756420238570,-425.52029335,0.00020389,2]
[381932666,1756420238579,-160.0,0.00020389,2]
[381932667,1756420238588,-417.15472785,0.00020389,2]
[381932668,1756420238597,-217.27834477,0.00020389,2]
[381932669,1756420238606,-160.0,0.00020389,2]
[381932670,1756420238615,-845.47023312,0.00020389,2]
[381932671,1756420238624,-216.18903889,0.00020389,2]
[381932672,1756420238635,-160.0,0.00020389,2]
[381932673,1756420238645,-480.0,0.00020447,2]
[381932674,1756420238655,-480.0,0.00020447,2]
[381932675,1756420238665,-480.0,0.00020447,2]
[381932676,1756420238674,-500.0,0.00020455,2]
[381932677,1756420238684,-480.0,0.00020547,2]
[381932678,1756420238697,-744.14,0.00020547,2]
[381932679,1756420238706,-480.0,0.00020547,2]
[381932680,1756420238715,-654.77,0.00020547,2]
[381932681,1756420238724,-480.0,0.00020547,2]
[381932682,1756420238734,-480.0,0.00020721,2]
[381932683,1756420238743,-480.0,0.00020721,2]
[381932684,1756420238753,-480.0,0.00020721,2]
[381932685,1756420238762,-480.0,0.00020821,2]
[381932686,1756420238771,-744.14,0.00020821,2]
[381932687,1756420238780,-480.0,0.00020821,2]
[381932688,1756420238789,-654.77,0.00020821,2]
[381932689,1756420238798,-480.0,0.00020821,2]
[381932690,1756420238807,-420.0,0.00020899,2]
[381932691,1756420238816,-480.0,0.00020995,2]
[381932692,1756420238825,-527.53736974,0.00020995,2]
[381932693,1756420238835,-480.0,0.00020995,2]
[381932694,1756420238844,-1000.0,0.00021002,2]
[381932695,1756420238853,-480.0,0.00021095,2]
[381932696,1756420238862,-744.14,0.00021095,2]
[381932697,1756420238871,-480.0,0.00021095,2]
[381932698,1756420238878,-654.77,0.00021095,2]
[381932699,1756420238887,-480.0,0.00021095,2]
[381932700,1756420238895,-1000.0,0.000212,2]
[381932701,1756420238904,-554.88,0.00021269,2]
[381932702,1756420238914,-480.0,0.00021269,2]
[381932703,1756420238923,-480.0,0.00021369,2]
[381932704,1756420238933,-744.14,0.00021369,2]
[381932705,1756420238942,-480.0,0.00021369,2]
[381932706,1756420238951,-654.77,0.00021369,2]
[381932707,1756420238960,-480.0,0.00021369,2]
[381932708,1756420238969,-480.0,0.00021543,2]
[381932709,1756420238979,-1500.0,0.0002155,2]
[381932710,1756420238988,-2938.70864476,0.00021627,2]
[381932711,1756420238997,-480.0,0.00021643,2]
[381932712,1756420239006,-744.14,0.00021643,2]
[381932713,1756420239015,-480.0,0.00021643,2]
[381932714,1756420239025,-654.77,0.00021643,2]
[381932715,1756420239035,-480.0,0.00021643,2]
[381932716,1756420239045,-480.0,0.00021817,2]
[381932717,1756420239054,-480.0,0.00021917,2]
[381932718,1756420239063,-744.14,0.00021917,2]
[381932719,1756420239072,-480.0,0.00021917,2]
[381932720,1756420239082,-654.77,0.00021917,2]
[381932721,1756420239091,-480.0,0.00021917,2]
[381932722,1756420239100,-200.0,0.00021918,2]
[381932723,1756420239109,-160.0,0.00022,2]
[381932724,1756420239119,-187.78006525,0.00022062,2]
[381932725,1756420239128,-480.0,0.00022091,2]
[381932726,1756420239138,-1000.0,0.00022098,2]
[381932727,1756420239147,-192.88587891,0.000221,2]
[381932728,1756420239156,-377.2,0.000221,2]
[381932729,1756420239166,-500.0,0.00022133,2]
[381932730,1756420239176,-480.0,0.00022191,2]
[381932731,1756420239185,-744.14,0.00022191,2]
[381932732,1756420239194,-480.0,0.00022191,2]
[381932733,1756420239203,-654.77,0.00022191,2]
[381932734,1756420239212,-480.0,0.00022191,2]
[381932735,1756420239222,-480.0,0.00022365,2]
[381932736,1756420239231,-480.0,0.00022465,2]
[381932737,1756420239239,-744.14,0.00022465,2]
[381932738,1756420239249,-480.0,0.00022465,2]
[381932739,1756420239258,-654.77,0.00022465,2]
[381932740,1756420239267,-480.0,0.00022465,2]
[381932741,1756420239277,-260.0,0.00022548,2]
[381932742,1756420239286,-155.754415,0.00022622,2]
[381932743,1756420239296,-480.0,0.00022639,2]
[381932744,1756420239305,-1000.0,0.00022681,2]
[381932745,1756420239314,-1050.8450989,0.00022733,2]
[381932746,1756420239323,-225.6,0.00022739,2]
[381932747,1756420239332,-744.14,0.00022739,2]
[381932748,1756420239341,-15.39617223,0.00022739,2]
[381932785,1756420245928,-5000.0,0.00018985,2]
[381932786,1756420245938,-464.60382777,0.00022739,2]
[381932787,1756420245948,-654.77,0.00022739,2]
[381932788,1756420245957,-480.0,0.00022739,2]
[381932789,1756420245966,-587.0,0.00022776,2]
[381932790,1756420245975,-480.0,0.00022913,2]
[381932791,1756420245984,-259.0774972,0.00023,2]
[381932792,1756420245995,-160.0,0.00023,2]
[381932793,1756420246005,-10961.17405955,0.0002301,5]
[381932794,1756420246014,-744.14,0.00023013,2]
[381932795,1756420246024,-480.0,0.00023013,2]
[381932796,1756420246033,-654.77,0.00023013,2]
[381932797,1756420246042,-480.0,0.00023013,2]
[381932798,1756420246052,-360.0,0.00023096,2]
[381932799,1756420246062,-480.0,0.00023187,2]
[381932800,1756420246071,-1500.0,0.00023229,2]
[381932801,1756420246080,-744.14,0.00023287,2]
[381932802,1756420246089,-480.0,0.00023287,2]
[381932803,1756420246098,-654.77,0.00023287,2]
[381932804,1756420246107,-480.0,0.00023287,2]
[381932805,1756420246116,-2938.70864476,0.00023353,2]
[381932806,1756420246126,-535.961,0.00023385,3]
[381932807,1756420246135,-301.71994541,0.00023431,2]
[381932808,1756420246144,-480.0,0.00023461,2]
[381932810,1756420246153,-155.754415,0.000235,3]
[381932811,1756420246163,-744.14,0.00023561,2]
[381932812,1756420246171,-539.6,0.00023561,2]
[381932813,1756420246180,-654.77,0.00023561,2]
[381932814,1756420246190,-480.0,0.00023561,2]
[381932815,1756420246200,-460.0,0.00023644,2]
[381932816,1756420246209,-168.0,0.00023708,2]
[381932817,1756420246218,-480.0,0.00023735,2]
[381932818,1756420246227,-155.754415,0.0002375,3]
[381932819,1756420246236,-2000.0,0.00023777,2]
[381932820,1756420246366,-284.0,0.00023793,2]
[381932821,1756420246376,-284.0,0.00023825,2]
[381932822,1756420246385,-744.14,0.00023835,2]
[381932823,1756420246394,-654.77,0.00023835,2]
[381932824,1756420246404,-480.0,0.00023835,2]
[381932825,1756420246414,-2151.0,0.00023919,2]
[381932826,1756420246424,-632.0,0.00023919,2]
[381932827,1756420246433,-409.0,0.00023919,2]
[381932828,1756420246442,-417.947,0.00023919,2]
[381932829,1756420246454,-284.0,0.00023935,2]
[381932830,1756420246463,-1249.91,0.0002398,10]
[381932831,1756420246472,-284.0,0.00023982,2]
[381932832,1756420246481,-100000.0,0.0002399,2]
[381932833,1756420246490,-155.754415,0.00024,3]
[381932834,1756420246499,-153.723245,0.00024,3]
[381932835,1756420246509,-216.18903889,0.00024,3]
[381932836,1756420246518,-480.88,0.00024009,2]
[381932837,1756420246527,-153.0,0.00024023,2]
[381932838,1756420246537,-153.0,0.00024023,2]
[381932839,1756420246547,-153.0,0.00024023,2]
[381932840,1756420246556,-153.0,0.00024023,2]
[381932841,1756420246565,-153.0,0.00024023,2]
[381932842,1756420246576,-153.0,0.00024023,2]
[381932843,1756420246586,-153.0,0.00024023,2]
[381932844,1756420246596,-744.14,0.00024109,2]
[381932845,1756420246605,-654.77,0.00024109,2]
[381932846,1756420246615,-589.3544888,0.00024109,2]
[381932847,1756420246625,-223.52692474,0.00024152,2]
[381932848,1756420246634,-284.0,0.00024172,2]
[381932849,1756420246645,-560.0,0.00024192,2]
[381932850,1756420246654,-284.0,0.0002423,2]
[381932851,1756420246663,-2500.0,0.00024325,2]
[381932852,1756420246673,-744.14,0.00024383,2]
[381932853,1756420246683,-654.77,0.00024383,2]
[381932854,1756420246694,-284.0,0.00024545,2]
[381932855,1756420246703,-168.0,0.00024555,2]
[381932856,1756420246714,-168.0,0.00024654,2]
[381932857,1756420246723,-744.14,0.00024657,2]
[381932858,1756420246733,-654.77,0.00024657,2]
[381932859,1756420246742,-150.0,0.00024658,2]
[381932860,1756420246752,-299.4168737,0.00024658,2]
[381932861,1756420246761,-198.0,0.00024658,2]
[381932862,1756420246770,-445.0,0.00024658,2]
[381932863,1756420246781,-500.0,0.00024658,2]
[381932864,1756420246790,-183.68527459,0.000247,2]
[381932865,1756420246800,-647.0,0.000247,2]
[381932866,1756420246809,-250.0,0.00024737,2]
[381932867,1756420246819,-660.0,0.0002474,2]
[381932868,1756420246829,-500.0,0.00024773,2]
[381932869,1756420246838,-1901.07306462,0.000248,2]
[381932870,1756420246847,-1746.38562212,0.000248,2]
[381932871,1756420246857,-284.0,0.0002482,2]
[381932872,1756420246866,-823.0,0.00024821,2]
[381932873,1756420246876,-500.0,0.00024873,2]
[381932874,1756420246885,-3000.0,0.00024873,2]
[381932875,1756420246894,-178.80247301,0.000249,2]
[381932876,1756420246903,-4168.52169997,0.000249,7]
[381932883,1756421424553,195.331154,0.00013699,2]
[381932977,1756421437952,-5000.0,0.00018235,6]
[381932979,1756421437962,-300.0,0.00019167,2]
[381932981,1756421437972,-497.0,0.00019168,2]
[381932982,1756421437982,-172.378143,0.00019863,2]
[381932983,1756421437991,-2909.73666908,0.000199,2]
[381932984,1756421438000,-3649.02597482,0.00019945,2]
[381932985,1756421438010,-480.0,0.00019995,2]
[381932986,1756421438020,-480.0,0.00019995,2]
[381932987,1756421438029,-480.0,0.00019995,2]
[381932988,1756421438039,-430.70712864,0.00019995,2]
[381932989,1756421438048,-480.0,0.00019996,2]
[381932990,1756421438057,-480.0,0.00019996,2]
[381932991,1756421438067,-480.0,0.00019996,2]
[381932992,1756421438076,-480.0,0.00019996,2]
[381932993,1756421438086,-480.0,0.00019996,2]
[381932994,1756421438095,-480.0,0.00019996,2]
[381932995,1756421438105,-480.0,0.00019996,2]